[Event "Titled Tuesday Blitz July 25 Early 2023"]
[White "Semenova, Alina"]
[Black "Silva Lucena, Cristian"]
[WhiteFideId "24113875"]
[BlackFideId "2232588"]
[WhiteElo "2090"]
[BlackElo "2430"]
[Result "0-1"]
[Round "4"]
[TimeControl "180+2"]
[Date "2023.07.25"]
[WhiteClock "0:00:01"]
[BlackClock "0:01:21"]
[Board "201"]

1. e4 {[%clk 0:03:00]}  c5 {[%clk 0:02:59]} 2. Nf3 {[%clk 0:03:00]}  d6 {[%clk 0:02:59]} 3. d4 {[%clk 0:03:00]}  cxd4 {[%clk 0:03:00]} 4. Nxd4 {[%clk 0:03:00]}  Nf6 {[%clk 0:03:01]} 5. Nc3 {[%clk 0:03:00]}  g6 {[%clk 0:03:01]} 6. Be2 {[%clk 0:02:57]}  Bg7 {[%clk 0:03:02]} 7. Be3 {[%clk 0:02:57]}  O-O {[%clk 0:03:03]} 8. O-O {[%clk 0:02:53]}  Nc6 {[%clk 0:03:03]} 9. Nb3 {[%clk 0:02:52]}  Be6 {[%clk 0:03:02]} 10. f3 {[%clk 0:02:51]}  Qc8 {[%clk 0:03:03]} 11. Qd2 {[%clk 0:02:45]}  Rd8 {[%clk 0:03:03]} 12. Nd5 {[%clk 0:02:40]}  Bxd5 {[%clk 0:02:55]} 13. exd5 {[%clk 0:02:41]}  Ne5 {[%clk 0:02:56]} 14. Rad1 {[%clk 0:01:47]}  Nc4 {[%clk 0:02:52]} 15. Bxc4 {[%clk 0:01:46]}  Qxc4 {[%clk 0:02:52]} 16. c3 {[%clk 0:01:43]}  Rdc8 {[%clk 0:02:45]} 17. Qd3 {[%clk 0:01:30]}  Qa4 {[%clk 0:02:45]} 18. Nc1 {[%clk 0:01:28]}  Nd7 {[%clk 0:02:38]} 19. b3 {[%clk 0:01:23]}  Qa5 {[%clk 0:02:39]} 20. c4 {[%clk 0:01:16]}  b5 {[%clk 0:02:39]} 21. cxb5 {[%clk 0:01:11]}  Rc3 {[%clk 0:02:39]} 22. Qe2 {[%clk 0:01:08]}  Qa3 {[%clk 0:02:30]} 23. Nd3 {[%clk 0:00:45]}  Rac8 {[%clk 0:02:25]} 24. Rc1 {[%clk 0:00:45]}  Bf6 {[%clk 0:02:17]} 25. Rxc3 {[%clk 0:00:36]}  Rxc3 {[%clk 0:02:18]} 26. Rc1 {[%clk 0:00:36]}  Rxc1+ {[%clk 0:02:12]} 27. Bxc1 {[%clk 0:00:37]}  Qa5 {[%clk 0:02:10]} 28. a4 {[%clk 0:00:29]}  Qb6+ {[%clk 0:02:09]} 29. Be3 {[%clk 0:00:27]}  Qc7 {[%clk 0:02:10]} 30. Qd2 {[%clk 0:00:25]}  Nb6 {[%clk 0:02:09]} 31. Nb4 {[%clk 0:00:18]}  Bc3 {[%clk 0:02:04]} 32. Qc2 {[%clk 0:00:18]}  Qc8 {[%clk 0:01:57]} 33. Nc6 {[%clk 0:00:17]}  Bf6 {[%clk 0:01:55]} 34. Bxb6 {[%clk 0:00:17]}  axb6 {[%clk 0:01:55]} 35. Qf2 {[%clk 0:00:15]}  Qc7 {[%clk 0:01:56]} 36. Qe3 {[%clk 0:00:11]}  h5 {[%clk 0:01:56]} 37. f4 {[%clk 0:00:10]}  Kg7 {[%clk 0:01:55]} 38. f5 {[%clk 0:00:10]}  gxf5 {[%clk 0:01:53]} 39. Qh3 {[%clk 0:00:09]}  Kg6 {[%clk 0:01:53]} 40. Qg3+ {[%clk 0:00:08]}  Kh6 {[%clk 0:01:53]} 41. Qf4+ {[%clk 0:00:07]}  Kg6 {[%clk 0:01:51]} 42. b4 {[%clk 0:00:05]}  e5 {[%clk 0:01:46]} 43. dxe6 {[%clk 0:00:04]}  fxe6 {[%clk 0:01:45]} 44. Qg3+ {[%clk 0:00:04]}  Kh7 {[%clk 0:01:42]} 45. Qe3 {[%clk 0:00:05]}  e5 {[%clk 0:01:38]} 46. Qd3 {[%clk 0:00:04]}  Qd7 {[%clk 0:01:35]} 47. a5 {[%clk 0:00:02]}  bxa5 {[%clk 0:01:34]} 48. bxa5 {[%clk 0:00:03]}  e4 {[%clk 0:01:34]} 49. Qd5 {[%clk 0:00:03]}  Qb7 {[%clk 0:01:29]} 50. a6 {[%clk 0:00:03]}  Qb6+ {[%clk 0:01:29]} 51. Kf1 {[%clk 0:00:04]}  Qe3 {[%clk 0:01:27]} 52. Qf7+ {[%clk 0:00:04]}  Bg7 {[%clk 0:01:28]} 53. Qxh5+ {[%clk 0:00:04]}  Kg8 {[%clk 0:01:27]} 54. Qe8+ {[%clk 0:00:04]}  Bf8 {[%clk 0:01:25]} 55. Qg6+ {[%clk 0:00:04]}  Kh8 {[%clk 0:01:26]} 56. Qh5+ {[%clk 0:00:03]}  Kg7 {[%clk 0:01:26]} 57. a7 {[%clk 0:00:02]}  d5 {[%clk 0:01:21]} 58. Qxf5 {[%clk 0:00:01]}  Qd3+ {[%clk 0:01:21]} 0-1


[Site "https://www.chess.com"]

[Event "Titled Tuesday Blitz July 25 Early 2023"]
[White "JonSnowNW1"]
[Black "Goughfather"]
[WhiteElo "2426"]
[BlackElo "2056"]
[Result "1-0"]
[Round "4"]
[TimeControl "180+2"]
[Date "2023.07.25"]
[WhiteClock "0:01:05"]
[BlackClock "0:00:04"]
[Board "203"]

1. c4 {[%clk 0:03:00]}  c6 {[%clk 0:02:52]} 2. e4 {[%clk 0:03:00]}  d5 {[%clk 0:02:52]} 3. cxd5 {[%clk 0:03:01]}  cxd5 {[%clk 0:02:51]} 4. exd5 {[%clk 0:03:01]}  Nf6 {[%clk 0:02:50]} 5. Bb5+ {[%clk 0:03:02]}  Nbd7 {[%clk 0:02:46]} 6. Nc3 {[%clk 0:03:01]}  a6 {[%clk 0:02:46]} 7. Be2 {[%clk 0:02:58]}  b5 {[%clk 0:02:42]} 8. d6 {[%clk 0:02:45]}  exd6 {[%clk 0:02:33]} 9. Bf3 {[%clk 0:02:44]}  Rb8 {[%clk 0:02:25]} 10. Nge2 {[%clk 0:02:40]}  Ne5 {[%clk 0:02:23]} 11. Nd4 {[%clk 0:02:37]}  Qb6 {[%clk 0:02:08]} 12. Nce2 {[%clk 0:02:30]}  Nd3+ {[%clk 0:01:51]} 13. Kf1 {[%clk 0:02:28]}  Bd7 {[%clk 0:01:26]} 14. Qc2 {[%clk 0:02:19]}  Ne5 {[%clk 0:01:17]} 15. d3 {[%clk 0:02:08]}  Rc8 {[%clk 0:01:15]} 16. Qd1 {[%clk 0:01:56]}  Be7 {[%clk 0:01:05]} 17. Be3 {[%clk 0:01:55]}  O-O {[%clk 0:01:03]} 18. Nc6 {[%clk 0:01:44]}  Bxc6 {[%clk 0:00:44]} 19. Bxb6 {[%clk 0:01:42]}  Nxf3 {[%clk 0:00:44]} 20. gxf3 {[%clk 0:01:42]}  Bxf3 {[%clk 0:00:45]} 21. Rg1 {[%clk 0:01:41]}  Ng4 {[%clk 0:00:40]} 22. Rg3 {[%clk 0:01:39]}  Ne5 {[%clk 0:00:18]} 23. Bd4 {[%clk 0:01:34]}  Bh5 {[%clk 0:00:10]} 24. f4 {[%clk 0:01:14]}  Ng4 {[%clk 0:00:07]} 25. Qd2 {[%clk 0:01:06]}  Nxh2+ {[%clk 0:00:06]} 26. Kg2 {[%clk 0:01:06]}  Ng4 {[%clk 0:00:06]} 27. Rh1 {[%clk 0:01:06]}  g6 {[%clk 0:00:04]} 28. f5 {[%clk 0:01:05]} 1-0


[Site "https://www.chess.com"]

[Event "Titled Tuesday Blitz July 25 Early 2023"]
[White "Krzywda, Andrzej"]
[Black "Gyulamiryan-koryun"]
[WhiteFideId "1114565"]
[WhiteElo "2423"]
[BlackElo "2055"]
[Result "1/2-1/2"]
[Round "4"]
[TimeControl "180+2"]
[Date "2023.07.25"]
[WhiteClock "0:00:09"]
[BlackClock "0:00:05"]
[Board "205"]

1. e4 {[%clk 0:03:00]}  c5 {[%clk 0:02:57]} 2. Nf3 {[%clk 0:03:01]}  d6 {[%clk 0:02:57]} 3. d4 {[%clk 0:03:01]}  cxd4 {[%clk 0:02:57]} 4. Nxd4 {[%clk 0:03:02]}  Nf6 {[%clk 0:02:56]} 5. Nc3 {[%clk 0:03:02]}  a6 {[%clk 0:02:57]} 6. h3 {[%clk 0:03:02]}  e6 {[%clk 0:02:54]} 7. Be3 {[%clk 0:02:58]}  Be7 {[%clk 0:02:53]} 8. g4 {[%clk 0:02:58]}  d5 {[%clk 0:02:51]} 9. Bg2 {[%clk 0:02:50]}  dxe4 {[%clk 0:02:46]} 10. Nxe4 {[%clk 0:02:49]}  Nbd7 {[%clk 0:02:38]} 11. Ng5 {[%clk 0:02:40]}  O-O {[%clk 0:02:13]} 12. O-O {[%clk 0:02:37]}  Ne5 {[%clk 0:02:05]} 13. Qe2 {[%clk 0:02:20]}  Ng6 {[%clk 0:01:53]} 14. Rad1 {[%clk 0:02:15]}  Qc7 {[%clk 0:01:53]} 15. f4 {[%clk 0:02:11]}  Nd5 {[%clk 0:01:26]} 16. Bxd5 {[%clk 0:02:08]}  Bxg5 {[%clk 0:01:25]} 17. fxg5 {[%clk 0:01:56]}  exd5 {[%clk 0:01:22]} 18. Qf2 {[%clk 0:01:56]}  Be6 {[%clk 0:01:12]} 19. c3 {[%clk 0:01:51]}  Rae8 {[%clk 0:01:01]} 20. Rd2 {[%clk 0:01:51]}  b5 {[%clk 0:00:57]} 21. Nf5 {[%clk 0:01:44]}  Qd7 {[%clk 0:00:42]} 22. Bc5 {[%clk 0:01:40]}  Bxf5 {[%clk 0:00:33]} 23. gxf5 {[%clk 0:01:39]}  Ne5 {[%clk 0:00:15]} 24. Qh4 {[%clk 0:01:26]}  Nc4 {[%clk 0:00:13]} 25. Rd4 {[%clk 0:01:10]}  Ne3 {[%clk 0:00:12]} 26. Bxf8 {[%clk 0:00:57]}  Nxf1 {[%clk 0:00:10]} 27. Qf2 {[%clk 0:00:46]}  Kxf8 {[%clk 0:00:09]} 28. Qxf1 {[%clk 0:00:46]}  Re5 {[%clk 0:00:09]} 29. Rf4 {[%clk 0:00:46]}  Re4 {[%clk 0:00:05]} 30. Qf2 {[%clk 0:00:39]}  Qe7 {[%clk 0:00:05]} 31. Rxe4 {[%clk 0:00:35]}  Qxe4 {[%clk 0:00:05]} 32. Qc5+ {[%clk 0:00:33]}  Qe7 {[%clk 0:00:04]} 33. Qc8+ {[%clk 0:00:29]}  Qe8 {[%clk 0:00:04]} 34. Qc5+ {[%clk 0:00:26]}  Qe7 {[%clk 0:00:04]} 35. Qc8+ {[%clk 0:00:16]}  Qe8 {[%clk 0:00:05]} 36. Qc5+ {[%clk 0:00:09]}  Qe7 {[%clk 0:00:05]} 1/2-1/2


[Site "https://www.chess.com"]

[Event "Titled Tuesday Blitz July 25 Early 2023"]
[White "Zepeda Berlanga, Jan Enrique"]
[Black "Pandey Srishti"]
[WhiteFideId "5132355"]
[BlackFideId "35093290"]
[WhiteElo "1856"]
[BlackElo "2415"]
[Result "0-1"]
[Round "4"]
[TimeControl "180+2"]
[Date "2023.07.25"]
[WhiteClock "0:00:13"]
[BlackClock "0:00:51"]
[Board "209"]

1. c4 {[%clk 0:02:59]}  c6 {[%clk 0:02:52]} 2. Nc3 {[%clk 0:02:59]}  d5 {[%clk 0:02:53]} 3. e3 {[%clk 0:02:58]}  Nf6 {[%clk 0:02:53]} 4. Nf3 {[%clk 0:02:57]}  e6 {[%clk 0:02:53]} 5. d4 {[%clk 0:02:51]}  Nbd7 {[%clk 0:02:53]} 6. a3 {[%clk 0:02:48]}  a6 {[%clk 0:02:52]} 7. Bd3 {[%clk 0:02:46]}  dxc4 {[%clk 0:02:52]} 8. Bxc4 {[%clk 0:02:46]}  b5 {[%clk 0:02:53]} 9. Bd3 {[%clk 0:02:46]}  Bd6 {[%clk 0:02:53]} 10. O-O {[%clk 0:02:46]}  O-O {[%clk 0:02:52]} 11. Bd2 {[%clk 0:02:37]}  Bb7 {[%clk 0:02:51]} 12. e4 {[%clk 0:02:35]}  e5 {[%clk 0:02:50]} 13. Re1 {[%clk 0:02:20]}  c5 {[%clk 0:02:47]} 14. dxe5 {[%clk 0:02:15]}  Nxe5 {[%clk 0:02:47]} 15. Nxe5 {[%clk 0:02:02]}  Bxe5 {[%clk 0:02:48]} 16. Qf3 {[%clk 0:01:59]}  c4 {[%clk 0:02:44]} 17. Qf5 {[%clk 0:01:27]}  Qxd3 {[%clk 0:02:41]} 18. Rad1 {[%clk 0:01:25]}  Bxc3 {[%clk 0:02:15]} 19. Bxc3 {[%clk 0:01:24]}  Bxe4 {[%clk 0:02:12]} 20. Qf4 {[%clk 0:01:14]}  Nd5 {[%clk 0:01:35]} 21. Qxe4 {[%clk 0:01:08]}  Qxe4 {[%clk 0:01:34]} 22. Rxe4 {[%clk 0:01:08]}  Nxc3 {[%clk 0:01:34]} 23. bxc3 {[%clk 0:01:09]}  Rfe8 {[%clk 0:01:33]} 24. Red4 {[%clk 0:01:00]}  g6 {[%clk 0:01:30]} 25. f3 {[%clk 0:00:57]}  Re2 {[%clk 0:01:30]} 26. R1d2 {[%clk 0:00:50]}  Rae8 {[%clk 0:01:28]} 27. Kf1 {[%clk 0:00:44]}  Rxd2 {[%clk 0:01:25]} 28. Rxd2 {[%clk 0:00:44]}  Re3 {[%clk 0:01:26]} 29. Rc2 {[%clk 0:00:43]}  f5 {[%clk 0:01:22]} 30. Kf2 {[%clk 0:00:41]}  Rd3 {[%clk 0:01:23]} 31. Ke2 {[%clk 0:00:36]}  Kf7 {[%clk 0:01:21]} 32. h4 {[%clk 0:00:34]}  f4 {[%clk 0:01:21]} 33. Kf2 {[%clk 0:00:33]}  Kf6 {[%clk 0:01:20]} 34. g3 {[%clk 0:00:32]}  Kf5 {[%clk 0:01:20]} 35. g4+ {[%clk 0:00:29]}  Ke5 {[%clk 0:01:20]} 36. g5 {[%clk 0:00:20]}  Kd5 {[%clk 0:01:10]} 37. Ke2 {[%clk 0:00:20]}  Kc5 {[%clk 0:01:09]} 38. Kf2 {[%clk 0:00:17]}  a5 {[%clk 0:01:09]} 39. Ke2 {[%clk 0:00:17]}  b4 {[%clk 0:01:08]} 40. axb4+ {[%clk 0:00:17]}  axb4 {[%clk 0:01:09]} 41. cxb4+ {[%clk 0:00:18]}  Kxb4 {[%clk 0:01:10]} 42. Rb2+ {[%clk 0:00:19]}  Kc3 {[%clk 0:01:09]} 43. Rb7 {[%clk 0:00:19]}  Re3+ {[%clk 0:01:08]} 44. Kf2 {[%clk 0:00:19]}  Kd2 {[%clk 0:01:07]} 45. Rb2+ {[%clk 0:00:19]}  Kc1 {[%clk 0:01:07]} 46. Rb4 {[%clk 0:00:18]}  c3 {[%clk 0:01:06]} 47. Rxf4 {[%clk 0:00:19]}  Re7 {[%clk 0:01:04]} 48. Rc4 {[%clk 0:00:19]}  c2 {[%clk 0:01:03]} 49. f4 {[%clk 0:00:19]}  Rd7 {[%clk 0:01:03]} 50. Ke2 {[%clk 0:00:19]}  Rb7 {[%clk 0:01:01]} 51. Kd3 {[%clk 0:00:18]}  Rd7+ {[%clk 0:01:01]} 52. Ke2 {[%clk 0:00:18]}  Kb2 {[%clk 0:00:58]} 53. Ke3 {[%clk 0:00:18]}  c1=Q+ {[%clk 0:00:46]} 54. Rxc1 {[%clk 0:00:16]}  Kxc1 {[%clk 0:00:47]} 55. Ke4 {[%clk 0:00:16]}  Rf7 {[%clk 0:00:47]} 56. Ke5 {[%clk 0:00:15]}  Kd2 {[%clk 0:00:46]} 57. h5 {[%clk 0:00:13]}  Ke3 {[%clk 0:00:45]} 58. hxg6 {[%clk 0:00:12]}  hxg6 {[%clk 0:00:45]} 59. Ke6 {[%clk 0:00:09]}  Rxf4 {[%clk 0:00:45]} 60. Ke7 {[%clk 0:00:09]}  Rf5 {[%clk 0:00:46]} 61. Ke6 {[%clk 0:00:10]}  Rxg5 {[%clk 0:00:46]} 62. Kf7 {[%clk 0:00:09]}  Rg1 {[%clk 0:00:47]} 63. Kf6 {[%clk 0:00:10]}  g5 {[%clk 0:00:48]} 64. Ke5 {[%clk 0:00:10]}  g4 {[%clk 0:00:49]} 65. Kd5 {[%clk 0:00:11]}  g3 {[%clk 0:00:50]} 66. Kc4 {[%clk 0:00:12]}  g2 {[%clk 0:00:51]} 67. Kb4 {[%clk 0:00:13]} 0-1


[Site "https://www.chess.com"]

[Event "Titled Tuesday Blitz July 25 Early 2023"]
[White "Altman, Joshua"]
[Black "EdmundPlayer"]
[WhiteFideId "426210"]
[WhiteElo "2541"]
[BlackElo "2294"]
[Result "0-1"]
[Round "4"]
[TimeControl "180+2"]
[Date "2023.07.25"]
[WhiteClock "0:00:02"]
[BlackClock "0:00:02"]
[Board "212"]

1. Nf3 {[%clk 0:03:00]}  d5 {[%clk 0:02:59]} 2. c4 {[%clk 0:03:00]}  d4 {[%clk 0:02:58]} 3. g3 {[%clk 0:02:58]}  Nc6 {[%clk 0:02:53]} 4. Bg2 {[%clk 0:02:57]}  e5 {[%clk 0:02:51]} 5. d3 {[%clk 0:02:57]}  Nf6 {[%clk 0:02:41]} 6. a3 {[%clk 0:02:56]}  a5 {[%clk 0:02:40]} 7. O-O {[%clk 0:02:56]}  Be7 {[%clk 0:02:39]} 8. e3 {[%clk 0:02:55]}  O-O {[%clk 0:02:38]} 9. exd4 {[%clk 0:02:55]}  exd4 {[%clk 0:02:37]} 10. Nbd2 {[%clk 0:02:51]}  Bf5 {[%clk 0:02:30]} 11. Ne1 {[%clk 0:02:42]}  Qd7 {[%clk 0:02:19]} 12. Rb1 {[%clk 0:02:24]}  Rfe8 {[%clk 0:02:12]} 13. Ndf3 {[%clk 0:01:57]}  h6 {[%clk 0:01:56]} 14. Bd2 {[%clk 0:01:54]}  a4 {[%clk 0:01:49]} 15. b4 {[%clk 0:01:51]}  axb3 {[%clk 0:01:47]} 16. Rxb3 {[%clk 0:01:51]}  Rxa3 {[%clk 0:01:36]} 17. Rxb7 {[%clk 0:00:51]}  Bf8 {[%clk 0:00:42]} 18. Bf4 {[%clk 0:00:46]}  Bd6 {[%clk 0:00:39]} 19. Bxd6 {[%clk 0:00:35]}  Qxd6 {[%clk 0:00:38]} 20. Nh4 {[%clk 0:00:34]}  Bg4 {[%clk 0:00:30]} 21. Qc1 {[%clk 0:00:31]}  Rc3 {[%clk 0:00:27]} 22. Qa1 {[%clk 0:00:22]}  Be2 {[%clk 0:00:25]} 23. Nf5 {[%clk 0:00:21]}  Qe6 {[%clk 0:00:20]} 24. Bh3 {[%clk 0:00:17]}  Kh7 {[%clk 0:00:18]} 25. Rxc7 {[%clk 0:00:06]}  Bxf1 {[%clk 0:00:17]} 26. Kxf1 {[%clk 0:00:07]}  Qe2+ {[%clk 0:00:16]} 27. Kg2 {[%clk 0:00:06]}  Qxe1 {[%clk 0:00:14]} 28. Qxe1 {[%clk 0:00:06]}  Rxe1 {[%clk 0:00:13]} 29. Rxc6 {[%clk 0:00:07]}  Rxd3 {[%clk 0:00:12]} 30. Nd6 {[%clk 0:00:02]}  Rd2 {[%clk 0:00:09]} 31. Nxf7 {[%clk 0:00:02]}  Kg6 {[%clk 0:00:07]} 32. Nd6 {[%clk 0:00:01]}  Ree2 {[%clk 0:00:07]} 33. Bf5+ {[%clk 0:00:01]}  Kg5 {[%clk 0:00:03]} 34. h4+ {[%clk 0:00:02]}  Kh5 {[%clk 0:00:03]} 35. Nf7 {[%clk 0:00:02]}  Rxf2+ {[%clk 0:00:03]} 36. Kg1 {[%clk 0:00:02]}  Rxf5 {[%clk 0:00:03]} 37. Nd6 {[%clk 0:00:01]}  Rd1+ {[%clk 0:00:03]} 38. Kg2 {[%clk 0:00:02]}  Rd2+ {[%clk 0:00:04]} 39. Kh3 {[%clk 0:00:02]}  Rff2 {[%clk 0:00:03]} 40. g4+ {[%clk 0:00:01]}  Nxg4 {[%clk 0:00:03]} 41. Kg3 {[%clk 0:00:02]}  Ne5 {[%clk 0:00:03]} 42. Ne4 {[%clk 0:00:02]}  Rf3# {[%clk 0:00:02]} 0-1


[Site "https://www.chess.com"]

[Event "Titled Tuesday Blitz July 25 Early 2023"]
[White "Akylbek2021"]
[Black "LLariMarc"]
[WhiteElo "2454"]
[BlackElo "2262"]
[Result "0-1"]
[Round "4"]
[TimeControl "180+2"]
[Date "2023.07.25"]
[WhiteClock "0:00:01"]
[BlackClock "0:01:19"]
[Board "213"]

1. e4 {[%clk 0:02:45]}  e6 {[%clk 0:02:59]} 2. d4 {[%clk 0:02:45]}  d5 {[%clk 0:03:00]} 3. e5 {[%clk 0:02:45]}  c5 {[%clk 0:03:00]} 4. c3 {[%clk 0:02:46]}  Qa5 {[%clk 0:03:00]} 5. Nf3 {[%clk 0:02:46]}  cxd4 {[%clk 0:02:59]} 6. Nxd4 {[%clk 0:02:45]}  Nc6 {[%clk 0:03:00]} 7. Nxc6 {[%clk 0:02:38]}  bxc6 {[%clk 0:03:00]} 8. Bd3 {[%clk 0:02:37]}  Ba6 {[%clk 0:03:01]} 9. O-O {[%clk 0:02:37]}  Bxd3 {[%clk 0:03:00]} 10. Qxd3 {[%clk 0:02:38]}  Qb5 {[%clk 0:03:01]} 11. Qxb5 {[%clk 0:02:34]}  cxb5 {[%clk 0:03:02]} 12. a4 {[%clk 0:02:34]}  b4 {[%clk 0:03:02]} 13. Bd2 {[%clk 0:02:30]}  bxc3 {[%clk 0:02:57]} 14. Nxc3 {[%clk 0:02:31]}  a6 {[%clk 0:02:51]} 15. Ne2 {[%clk 0:02:17]}  Ne7 {[%clk 0:02:48]} 16. b4 {[%clk 0:02:16]}  Nc6 {[%clk 0:02:41]} 17. b5 {[%clk 0:02:13]}  Nxe5 {[%clk 0:02:41]} 18. Nd4 {[%clk 0:01:56]}  Bd6 {[%clk 0:02:38]} 19. Rfb1 {[%clk 0:01:36]}  Kd7 {[%clk 0:02:35]} 20. b6 {[%clk 0:01:33]}  Rhb8 {[%clk 0:02:33]} 21. a5 {[%clk 0:01:32]}  Rb7 {[%clk 0:02:33]} 22. Bf4 {[%clk 0:01:25]}  Nc4 {[%clk 0:02:32]} 23. Bxd6 {[%clk 0:01:25]}  Nxd6 {[%clk 0:02:33]} 24. Nb3 {[%clk 0:01:17]}  Rc8 {[%clk 0:02:32]} 25. Rc1 {[%clk 0:01:11]}  Nc4 {[%clk 0:02:32]} 26. Kf1 {[%clk 0:01:07]}  Rc6 {[%clk 0:02:27]} 27. Ke2 {[%clk 0:01:05]}  Kd6 {[%clk 0:02:20]} 28. f4 {[%clk 0:01:00]}  Nxb6 {[%clk 0:02:11]} 29. Rxc6+ {[%clk 0:00:48]}  Kxc6 {[%clk 0:02:10]} 30. axb6 {[%clk 0:00:48]}  Rxb6 {[%clk 0:02:10]} 31. Nd4+ {[%clk 0:00:49]}  Kd7 {[%clk 0:02:09]} 32. Kd3 {[%clk 0:00:47]}  Ke7 {[%clk 0:01:59]} 33. g4 {[%clk 0:00:44]}  g6 {[%clk 0:01:58]} 34. g5 {[%clk 0:00:42]}  Kd6 {[%clk 0:01:55]} 35. Ra5 {[%clk 0:00:38]}  Kc7 {[%clk 0:01:54]} 36. h4 {[%clk 0:00:34]}  Kb7 {[%clk 0:01:54]} 37. Kc3 {[%clk 0:00:32]}  Rb1 {[%clk 0:01:51]} 38. Kd3 {[%clk 0:00:18]}  Rh1 {[%clk 0:01:48]} 39. Nf3 {[%clk 0:00:18]}  Rd1+ {[%clk 0:01:46]} 40. Ke2 {[%clk 0:00:17]}  Rb1 {[%clk 0:01:44]} 41. Ne5 {[%clk 0:00:16]}  Rh1 {[%clk 0:01:41]} 42. Nxf7 {[%clk 0:00:14]}  Rxh4 {[%clk 0:01:39]} 43. Ke3 {[%clk 0:00:13]}  Rh3+ {[%clk 0:01:38]} 44. Kd4 {[%clk 0:00:13]}  Rf3 {[%clk 0:01:36]} 45. Ke5 {[%clk 0:00:14]}  Re3+ {[%clk 0:01:37]} 46. Kd6 {[%clk 0:00:14]}  Re4 {[%clk 0:01:35]} 47. Rc5 {[%clk 0:00:10]}  Rxf4 {[%clk 0:01:34]} 48. Nd8+ {[%clk 0:00:10]}  Kb6 {[%clk 0:01:34]} 49. Nxe6 {[%clk 0:00:10]}  Re4 {[%clk 0:01:25]} 50. Kxd5 {[%clk 0:00:07]}  Rxe6 {[%clk 0:01:24]} 51. Rc2 {[%clk 0:00:02]}  Re7 {[%clk 0:01:23]} 52. Kd6 {[%clk 0:00:02]}  Rb7 {[%clk 0:01:23]} 53. Rb2+ {[%clk 0:00:02]}  Ka7 {[%clk 0:01:23]} 54. Rh2 {[%clk 0:00:02]}  a5 {[%clk 0:01:23]} 55. Kc6 {[%clk 0:00:02]}  Ka6 {[%clk 0:01:24]} 56. Ra2 {[%clk 0:00:01]}  Rf7 {[%clk 0:01:22]} 57. Kc5 {[%clk 0:00:01]}  Rf5+ {[%clk 0:01:23]} 58. Kc6 {[%clk 0:00:02]}  Rxg5 {[%clk 0:01:23]} 59. Re2 {[%clk 0:00:03]}  Rb5 {[%clk 0:01:23]} 60. Re8 {[%clk 0:00:03]}  Rb6+ {[%clk 0:01:23]} 61. Kc5 {[%clk 0:00:03]}  Rb7 {[%clk 0:01:22]} 62. Ra8+ {[%clk 0:00:03]}  Ra7 {[%clk 0:01:22]} 63. Rc8 {[%clk 0:00:03]}  Kb7 {[%clk 0:01:21]} 64. Rh8 {[%clk 0:00:01]}  Ka6 {[%clk 0:01:21]} 65. Rc8 {[%clk 0:00:01]}  a4 {[%clk 0:01:20]} 66. Kc6 {[%clk 0:00:01]}  Ka5 {[%clk 0:01:19]} 0-1


[Site "https://www.chess.com"]

[Event "Titled Tuesday Blitz July 25 Early 2023"]
[White "Kohler, Aran"]
[Black "Herman, Daniel"]
[WhiteFideId "1002856"]
[BlackFideId "30935008"]
[WhiteElo "2253"]
[BlackElo "2426"]
[Result "0-1"]
[Round "4"]
[TimeControl "180+2"]
[Date "2023.07.25"]
[WhiteClock "0:01:34"]
[BlackClock "0:01:41"]
[Board "214"]

1. e4 {[%clk 0:02:59]}  Nf6 {[%clk 0:02:59]} 2. e5 {[%clk 0:02:58]}  Nd5 {[%clk 0:02:59]} 3. Nc3 {[%clk 0:02:58]}  e6 {[%clk 0:02:58]} 4. Nxd5 {[%clk 0:02:56]}  exd5 {[%clk 0:02:59]} 5. d4 {[%clk 0:02:56]}  d6 {[%clk 0:02:58]} 6. f4 {[%clk 0:02:56]}  c5 {[%clk 0:02:57]} 7. Bb5+ {[%clk 0:02:52]}  Nc6 {[%clk 0:02:51]} 8. Nf3 {[%clk 0:02:42]}  Qa5+ {[%clk 0:02:50]} 9. c3 {[%clk 0:02:38]}  Qxb5 {[%clk 0:02:51]} 10. exd6 {[%clk 0:02:22]}  Bxd6 {[%clk 0:02:49]} 11. Qe2+ {[%clk 0:02:20]}  Qxe2+ {[%clk 0:02:48]} 12. Kxe2 {[%clk 0:02:21]}  Bg4 {[%clk 0:02:48]} 13. Kf2 {[%clk 0:02:21]}  Bxf3 {[%clk 0:02:45]} 14. Kxf3 {[%clk 0:02:19]}  cxd4 {[%clk 0:02:44]} 15. Rd1 {[%clk 0:02:19]}  Bc5 {[%clk 0:02:25]} 16. b4 {[%clk 0:02:16]}  Bb6 {[%clk 0:02:24]} 17. b5 {[%clk 0:02:17]}  Na5 {[%clk 0:02:23]} 18. cxd4 {[%clk 0:02:16]}  Nc4 {[%clk 0:02:23]} 19. Re1+ {[%clk 0:02:12]}  Kd7 {[%clk 0:02:22]} 20. Be3 {[%clk 0:02:12]}  Rhe8 {[%clk 0:02:21]} 21. Bf2 {[%clk 0:02:12]}  Rxe1 {[%clk 0:02:20]} 22. Rxe1 {[%clk 0:02:11]}  Re8 {[%clk 0:02:21]} 23. Rxe8 {[%clk 0:02:01]}  Kxe8 {[%clk 0:02:21]} 24. f5 {[%clk 0:01:59]}  Na3 {[%clk 0:02:17]} 25. Kf4 {[%clk 0:01:58]}  Bc7+ {[%clk 0:02:09]} 26. Kg5 {[%clk 0:01:57]}  Nxb5 {[%clk 0:02:09]} 27. h4 {[%clk 0:01:55]}  Bb6 {[%clk 0:02:07]} 28. f6 {[%clk 0:01:52]}  Bd8 {[%clk 0:02:05]} 29. g4 {[%clk 0:01:44]}  Bxf6+ {[%clk 0:02:04]} 30. Kh5 {[%clk 0:01:45]}  Bxd4 {[%clk 0:01:45]} 31. Bg3 {[%clk 0:01:39]}  Be3 {[%clk 0:01:42]} 32. Bb8 {[%clk 0:01:34]}  g6# {[%clk 0:01:41]} 0-1


[Site "https://www.chess.com"]